[Event "Titled Tuesday Blitz August 08 Early 2023"]
[White "Lazavik, Denis"]
[Black "benny_aizenberg"]
[WhiteFideId "13515110"]
[WhiteElo "3039"]
[BlackElo "2638"]
[Result "1-0"]
[Round "2"]
[TimeControl "180+1"]
[Date "2023.08.08"]
[WhiteClock "0:01:02"]
[BlackClock "0:00:11"]
[Board "9"]

1. d4 {[%clk 0:03:00]}  f5 {[%clk 0:02:59]} 2. c4 {[%clk 0:03:01]}  Nf6 {[%clk 0:03:00]} 3. Nf3 {[%clk 0:03:01]}  g6 {[%clk 0:03:00]} 4. g3 {[%clk 0:03:02]}  Bg7 {[%clk 0:03:00]} 5. Bg2 {[%clk 0:03:03]}  O-O {[%clk 0:03:01]} 6. O-O {[%clk 0:03:03]}  d6 {[%clk 0:03:01]} 7. Nc3 {[%clk 0:03:04]}  c6 {[%clk 0:03:02]} 8. d5 {[%clk 0:03:02]}  e5 {[%clk 0:03:02]} 9. dxe6 {[%clk 0:03:02]}  Bxe6 {[%clk 0:03:02]} 10. b3 {[%clk 0:03:03]}  h6 {[%clk 0:03:00]} 11. Bb2 {[%clk 0:02:49]}  Na6 {[%clk 0:02:58]} 12. Qc2 {[%clk 0:02:42]}  Qe7 {[%clk 0:02:55]} 13. Rad1 {[%clk 0:02:42]}  Rad8 {[%clk 0:02:55]} 14. e3 {[%clk 0:02:42]}  Rfe8 {[%clk 0:02:53]} 15. Ne2 {[%clk 0:02:41]}  Nc5 {[%clk 0:02:47]} 16. Nf4 {[%clk 0:02:40]}  Bf7 {[%clk 0:02:48]} 17. Nh4 {[%clk 0:02:38]}  Kh7 {[%clk 0:02:42]} 18. Bh3 {[%clk 0:02:36]}  Nce4 {[%clk 0:02:25]} 19. Bxf5 {[%clk 0:02:24]}  gxf5 {[%clk 0:02:25]} 20. Nxf5 {[%clk 0:02:25]}  Qd7 {[%clk 0:02:26]} 21. Nxd6 {[%clk 0:01:59]}  Qxd6 {[%clk 0:01:31]} 22. Rxd6 {[%clk 0:01:57]}  Rxd6 {[%clk 0:01:32]} 23. f3 {[%clk 0:01:58]}  Rd2 {[%clk 0:01:30]} 24. Qc1 {[%clk 0:01:34]}  Rxb2 {[%clk 0:01:07]} 25. Qxb2 {[%clk 0:01:33]}  Nc5 {[%clk 0:00:57]} 26. Qc2+ {[%clk 0:01:32]}  Kg8 {[%clk 0:00:56]} 27. e4 {[%clk 0:01:32]}  Nfd7 {[%clk 0:00:55]} 28. Rd1 {[%clk 0:01:31]}  Ne5 {[%clk 0:00:55]} 29. Kg2 {[%clk 0:01:31]}  Bf8 {[%clk 0:00:43]} 30. Ne2 {[%clk 0:01:27]}  Bh5 {[%clk 0:00:42]} 31. g4 {[%clk 0:01:23]}  Bg6 {[%clk 0:00:42]} 32. Ng3 {[%clk 0:01:17]}  Bg7 {[%clk 0:00:30]} 33. Nf5 {[%clk 0:01:14]}  h5 {[%clk 0:00:24]} 34. h3 {[%clk 0:01:09]}  hxg4 {[%clk 0:00:22]} 35. hxg4 {[%clk 0:01:10]}  Bxf5 {[%clk 0:00:21]} 36. gxf5 {[%clk 0:01:06]}  Kf7 {[%clk 0:00:21]} 37. b4 {[%clk 0:01:06]}  Ncd7 {[%clk 0:00:20]} 38. f4 {[%clk 0:01:04]}  Nf6 {[%clk 0:00:13]} 39. fxe5 {[%clk 0:01:01]}  Rxe5 {[%clk 0:00:14]} 40. Kf3 {[%clk 0:01:02]}  Bf8 {[%clk 0:00:12]} 41. c5 {[%clk 0:01:02]}  a5 {[%clk 0:00:11]} 42. a3 {[%clk 0:01:01]}  axb4 {[%clk 0:00:12]} 43. axb4 {[%clk 0:01:02]}  Re8 {[%clk 0:00:12]} 44. Qc4+ {[%clk 0:01:02]}  Ke7 {[%clk 0:00:11]} 45. Qe6# {[%clk 0:01:02]} 1-0


[Site "https://www.chess.com"]

[Event "Titled Tuesday Blitz August 08 Early 2023"]
[White "Paravyan, David"]
[Black "Saya, Ethan"]
[WhiteFideId "4194985"]
[BlackFideId "26095181"]
[WhiteElo "3025"]
[BlackElo "2635"]
[Result "1-0"]
[Round "2"]
[TimeControl "180+1"]
[Date "2023.08.08"]
[WhiteClock "0:02:30"]
[BlackClock "0:00:06"]
[Board "11"]

1. e4 {[%clk 0:03:00]}  e6 {[%clk 0:02:59]} 2. d4 {[%clk 0:03:00]}  d5 {[%clk 0:02:59]} 3. Nd2 {[%clk 0:03:01]}  c5 {[%clk 0:02:58]} 4. Ngf3 {[%clk 0:03:01]}  cxd4 {[%clk 0:02:51]} 5. Nxd4 {[%clk 0:03:02]}  Nf6 {[%clk 0:02:42]} 6. exd5 {[%clk 0:03:01]}  Qxd5 {[%clk 0:02:43]} 7. Nb5 {[%clk 0:03:00]}  Na6 {[%clk 0:02:42]} 8. Nc3 {[%clk 0:02:59]}  Qd6 {[%clk 0:02:37]} 9. Qe2 {[%clk 0:02:58]}  Be7 {[%clk 0:02:20]} 10. Nc4 {[%clk 0:02:58]}  Qd8 {[%clk 0:02:03]} 11. g3 {[%clk 0:02:56]}  Bd7 {[%clk 0:01:48]} 12. Bg2 {[%clk 0:02:56]}  Bc6 {[%clk 0:01:48]} 13. Bxc6+ {[%clk 0:02:55]}  bxc6 {[%clk 0:01:49]} 14. Ne5 {[%clk 0:02:56]}  Nb8 {[%clk 0:01:40]} 15. O-O {[%clk 0:02:55]}  O-O {[%clk 0:01:38]} 16. Rd1 {[%clk 0:02:55]}  Qa5 {[%clk 0:01:33]} 17. Bg5 {[%clk 0:02:52]}  h6 {[%clk 0:01:24]} 18. Bxf6 {[%clk 0:02:50]}  Bxf6 {[%clk 0:01:25]} 19. Nc4 {[%clk 0:02:51]}  Qa6 {[%clk 0:01:22]} 20. Ne4 {[%clk 0:02:40]}  Bxb2 {[%clk 0:00:55]} 21. Rab1 {[%clk 0:02:39]}  Be5 {[%clk 0:00:55]} 22. Nc5 {[%clk 0:02:38]}  Qxa2 {[%clk 0:00:31]} 23. Nxe5 {[%clk 0:02:36]}  Qa3 {[%clk 0:00:17]} 24. Qc4 {[%clk 0:02:31]}  a5 {[%clk 0:00:06]} 25. Rd3 {[%clk 0:02:30]} 1-0


[Site "https://www.chess.com"]

[Event "Titled Tuesday Blitz August 08 Early 2023"]
[White "Martinez Alcantara, Jose Eduardo"]
[Black "Tologon tegin, Semetei"]
[WhiteFideId "3805662"]
[BlackFideId "13800574"]
[WhiteElo "3016"]
[BlackElo "2634"]
[Result "1-0"]
[Round "2"]
[TimeControl "180+1"]
[Date "2023.08.08"]
[WhiteClock "0:01:16"]
[BlackClock "0:00:00"]
[Board "13"]

1. e4 {[%clk 0:03:00]}  e5 {[%clk 0:02:58]} 2. Nf3 {[%clk 0:03:01]}  Nc6 {[%clk 0:02:57]} 3. Nc3 {[%clk 0:03:01]}  Nf6 {[%clk 0:02:56]} 4. h3 {[%clk 0:03:00]}  h6 {[%clk 0:02:52]} 5. Bc4 {[%clk 0:02:59]}  Bc5 {[%clk 0:02:52]} 6. d3 {[%clk 0:02:58]}  d6 {[%clk 0:02:51]} 7. Be3 {[%clk 0:02:59]}  Bxe3 {[%clk 0:02:44]} 8. fxe3 {[%clk 0:03:00]}  Be6 {[%clk 0:02:44]} 9. Bb3 {[%clk 0:02:59]}  d5 {[%clk 0:02:33]} 10. exd5 {[%clk 0:02:58]}  Nxd5 {[%clk 0:02:33]} 11. Qd2 {[%clk 0:02:59]}  Nxc3 {[%clk 0:02:23]} 12. Qxc3 {[%clk 0:03:00]}  Bxb3 {[%clk 0:02:23]} 13. Qxb3 {[%clk 0:02:57]}  Qd7 {[%clk 0:02:13]} 14. O-O {[%clk 0:02:55]}  O-O-O {[%clk 0:02:09]} 15. Nh4 {[%clk 0:02:53]}  Rdf8 {[%clk 0:02:03]} 16. Rf2 {[%clk 0:02:49]}  Qd8 {[%clk 0:01:40]} 17. Qc4 {[%clk 0:02:22]}  Qg5 {[%clk 0:01:10]} 18. Re1 {[%clk 0:02:09]}  Kb8 {[%clk 0:01:02]} 19. Nf3 {[%clk 0:02:06]}  Qh5 {[%clk 0:00:58]} 20. Ref1 {[%clk 0:01:56]}  f5 {[%clk 0:00:51]} 21. d4 {[%clk 0:01:56]}  f4 {[%clk 0:00:43]} 22. Nxe5 {[%clk 0:01:49]}  Nxe5 {[%clk 0:00:42]} 23. dxe5 {[%clk 0:01:50]}  Qxe5 {[%clk 0:00:38]} 24. Qd4 {[%clk 0:01:33]}  Qe6 {[%clk 0:00:21]} 25. Rxf4 {[%clk 0:01:29]}  Rxf4 {[%clk 0:00:20]} 26. exf4 {[%clk 0:01:30]}  Qxa2 {[%clk 0:00:11]} 27. Qxg7 {[%clk 0:01:29]}  Rg8 {[%clk 0:00:12]} 28. Qe5 {[%clk 0:01:29]}  Qc4 {[%clk 0:00:10]} 29. Rf2 {[%clk 0:01:26]}  b6 {[%clk 0:00:07]} 30. f5 {[%clk 0:01:26]}  Qa4 {[%clk 0:00:04]} 31. f6 {[%clk 0:01:24]}  Re8 {[%clk 0:00:05]} 32. Qf4 {[%clk 0:01:21]}  Qa1+ {[%clk 0:00:04]} 33. Kh2 {[%clk 0:01:21]}  Qxb2 {[%clk 0:00:05]} 34. Qxh6 {[%clk 0:01:17]}  Qe5+ {[%clk 0:00:03]} 35. Qf4 {[%clk 0:01:17]}  Qe6 {[%clk 0:00:03]} 36. f7 {[%clk 0:01:17]}  Rf8 {[%clk 0:00:03]} 37. g4 {[%clk 0:01:16]}  a5 {[%clk 0:00:03]} 38. g5 {[%clk 0:01:16]}  a4 {[%clk 0:00:00]} 39. Qf6 {[%clk 0:01:16]} 1-0


[Site "https://www.chess.com"]

[Event "Titled Tuesday Blitz August 08 Early 2023"]
[White "Weishaeutel, Moritz"]
[Black "Megaranto, Susanto"]
[WhiteFideId "12967300"]
[BlackFideId "7101384"]
[WhiteElo "2632"]
[BlackElo "2999"]
[Result "1-0"]
[Round "2"]
[TimeControl "180+1"]
[Date "2023.08.08"]
[WhiteClock "0:01:21"]
[BlackClock "0:00:11"]
[Board "15"]

1. e4 {[%clk 0:03:00]}  c6 {[%clk 0:02:56]} 2. Nc3 {[%clk 0:02:57]}  d5 {[%clk 0:02:55]} 3. Qe2 {[%clk 0:02:56]}  a6 {[%clk 0:02:36]} 4. f4 {[%clk 0:02:44]}  dxe4 {[%clk 0:02:33]} 5. Nxe4 {[%clk 0:02:45]}  g6 {[%clk 0:02:23]} 6. Nf3 {[%clk 0:02:40]}  Bg7 {[%clk 0:02:22]} 7. g3 {[%clk 0:02:39]}  Nf6 {[%clk 0:02:20]} 8. Bg2 {[%clk 0:02:32]}  Nxe4 {[%clk 0:02:18]} 9. Qxe4 {[%clk 0:02:33]}  Bf5 {[%clk 0:02:09]} 10. Qc4 {[%clk 0:02:27]}  Nd7 {[%clk 0:02:06]} 11. d3 {[%clk 0:02:23]}  O-O {[%clk 0:02:05]} 12. O-O {[%clk 0:02:22]}  Nb6 {[%clk 0:02:01]} 13. Qb3 {[%clk 0:02:22]}  Be6 {[%clk 0:01:57]} 14. Qa3 {[%clk 0:02:19]}  Nd5 {[%clk 0:01:52]} 15. c3 {[%clk 0:02:16]}  Re8 {[%clk 0:01:36]} 16. Re1 {[%clk 0:02:13]}  b5 {[%clk 0:01:29]} 17. Ne5 {[%clk 0:02:12]}  Qb6+ {[%clk 0:01:24]} 18. Kh1 {[%clk 0:02:10]}  Rac8 {[%clk 0:01:13]} 19. c4 {[%clk 0:01:57]}  bxc4 {[%clk 0:01:10]} 20. dxc4 {[%clk 0:01:55]}  Nb4 {[%clk 0:01:10]} 21. Be3 {[%clk 0:01:55]}  c5 {[%clk 0:01:05]} 22. Rac1 {[%clk 0:01:56]}  Rcd8 {[%clk 0:01:00]} 23. Red1 {[%clk 0:01:45]}  Bxe5 {[%clk 0:00:48]} 24. fxe5 {[%clk 0:01:43]}  Rxd1+ {[%clk 0:00:36]} 25. Rxd1 {[%clk 0:01:44]}  Bg4 {[%clk 0:00:33]} 26. Rd2 {[%clk 0:01:39]}  Bc8 {[%clk 0:00:31]} 27. Qa4 {[%clk 0:01:24]}  Rd8 {[%clk 0:00:30]} 28. Bxc5 {[%clk 0:01:22]}  Qxc5 {[%clk 0:00:22]} 29. Rxd8+ {[%clk 0:01:22]}  Kg7 {[%clk 0:00:11]} 30. Rxc8 {[%clk 0:01:21]} 1-0


[Site "https://www.chess.com"]

[Event "Titled Tuesday Blitz August 08 Early 2023"]
[White "Kramnik, Vladimir"]
[Black "HamedWafa4"]
[WhiteFideId "4101588"]
[WhiteElo "2996"]
[BlackElo "2628"]
[Result "1-0"]
[Round "2"]
[TimeControl "180+1"]
[Date "2023.08.08"]
[WhiteClock "0:00:46"]
[BlackClock "0:00:27"]
[Board "18"]

1. e4 {[%clk 0:03:00]}  e5 {[%clk 0:02:58]} 2. Nf3 {[%clk 0:03:00]}  Nc6 {[%clk 0:02:56]} 3. Bb5 {[%clk 0:03:01]}  a6 {[%clk 0:02:57]} 4. Ba4 {[%clk 0:03:00]}  Nf6 {[%clk 0:02:57]} 5. d3 {[%clk 0:03:01]}  d6 {[%clk 0:02:55]} 6. c3 {[%clk 0:02:58]}  g6 {[%clk 0:02:55]} 7. O-O {[%clk 0:02:58]}  Bg7 {[%clk 0:02:55]} 8. h3 {[%clk 0:02:53]}  O-O {[%clk 0:02:54]} 9. Be3 {[%clk 0:02:46]}  b5 {[%clk 0:02:49]} 10. Bc2 {[%clk 0:02:45]}  Nb8 {[%clk 0:02:41]} 11. a4 {[%clk 0:02:42]}  Bb7 {[%clk 0:02:40]} 12. axb5 {[%clk 0:02:38]}  axb5 {[%clk 0:02:41]} 13. Rxa8 {[%clk 0:02:37]}  Bxa8 {[%clk 0:02:42]} 14. Na3 {[%clk 0:02:30]}  Qe8 {[%clk 0:02:22]} 15. b4 {[%clk 0:02:21]}  Nh5 {[%clk 0:02:18]} 16. c4 {[%clk 0:02:10]}  bxc4 {[%clk 0:02:16]} 17. Nxc4 {[%clk 0:02:08]}  Nf4 {[%clk 0:02:11]} 18. d4 {[%clk 0:01:59]}  Nd7 {[%clk 0:01:57]} 19. dxe5 {[%clk 0:01:53]}  dxe5 {[%clk 0:01:56]} 20. Ba4 {[%clk 0:01:51]}  c6 {[%clk 0:01:50]} 21. Qd6 {[%clk 0:01:38]}  Nf6 {[%clk 0:01:37]} 22. Qxe5 {[%clk 0:01:25]}  Nd3 {[%clk 0:01:30]} 23. Qxe8 {[%clk 0:01:18]}  Rxe8 {[%clk 0:01:31]} 24. Nd6 {[%clk 0:01:05]}  Re6 {[%clk 0:01:27]} 25. Bc5 {[%clk 0:00:51]}  Nxc5 {[%clk 0:01:15]} 26. bxc5 {[%clk 0:00:49]}  Nxe4 {[%clk 0:01:15]} 27. Bb3 {[%clk 0:00:48]}  Re7 {[%clk 0:00:27]} 28. Re1 {[%clk 0:00:46]} 1-0


[Site "https://www.chess.com"]

[Event "Titled Tuesday Blitz August 08 Early 2023"]
[White "Rostomyan, Mikayel"]
[Black "Van Foreest, Jorden"]
[WhiteFideId "13313754"]
[BlackFideId "1039784"]
[WhiteElo "2621"]
[BlackElo "2984"]
[Result "0-1"]
[Round "2"]
[TimeControl "180+1"]
[Date "2023.08.08"]
[WhiteClock "0:00:05"]
[BlackClock "0:00:54"]
[Board "21"]

1. d4 {[%clk 0:03:00]}  Nc6 {[%clk 0:02:59]} 2. d5 {[%clk 0:02:57]}  Ne5 {[%clk 0:02:59]} 3. Bf4 {[%clk 0:02:54]}  Ng6 {[%clk 0:02:58]} 4. Bg3 {[%clk 0:02:55]}  e5 {[%clk 0:02:55]} 5. Nc3 {[%clk 0:02:52]}  Bb4 {[%clk 0:02:51]} 6. e4 {[%clk 0:02:51]}  Bxc3+ {[%clk 0:02:51]} 7. bxc3 {[%clk 0:02:51]}  d6 {[%clk 0:02:51]} 8. Bd3 {[%clk 0:02:50]}  N8e7 {[%clk 0:02:51]} 9. Ne2 {[%clk 0:02:46]}  f5 {[%clk 0:02:50]} 10. f4 {[%clk 0:02:36]}  O-O {[%clk 0:02:46]} 11. O-O {[%clk 0:02:34]}  fxe4 {[%clk 0:02:46]} 12. Bxe4 {[%clk 0:02:34]}  Bf5 {[%clk 0:02:44]} 13. Bxf5 {[%clk 0:02:17]}  Nxf5 {[%clk 0:02:43]} 14. fxe5 {[%clk 0:02:17]}  Nxg3 {[%clk 0:02:31]} 15. Nxg3 {[%clk 0:02:11]}  Nxe5 {[%clk 0:02:30]} 16. Qh5 {[%clk 0:01:56]}  g6 {[%clk 0:02:24]} 17. Qh3 {[%clk 0:01:56]}  Qd7 {[%clk 0:02:16]} 18. Qxd7 {[%clk 0:01:46]}  Nxd7 {[%clk 0:02:16]} 19. Ne4 {[%clk 0:01:47]}  Nb6 {[%clk 0:02:09]} 20. Rad1 {[%clk 0:01:28]}  h6 {[%clk 0:02:02]} 21. Rd4 {[%clk 0:01:17]}  Kg7 {[%clk 0:01:59]} 22. c4 {[%clk 0:01:16]}  Nd7 {[%clk 0:01:59]} 23. Ng3 {[%clk 0:00:53]}  Ne5 {[%clk 0:01:54]} 24. Ne2 {[%clk 0:00:53]}  g5 {[%clk 0:01:42]} 25. Re4 {[%clk 0:00:52]}  Kg6 {[%clk 0:01:40]} 26. Nd4 {[%clk 0:00:51]}  Rxf1+ {[%clk 0:01:30]} 27. Kxf1 {[%clk 0:00:51]}  Rf8+ {[%clk 0:01:29]} 28. Ke2 {[%clk 0:00:48]}  Rf7 {[%clk 0:01:11]} 29. Ne6 {[%clk 0:00:44]}  b6 {[%clk 0:01:11]} 30. h3 {[%clk 0:00:40]}  h5 {[%clk 0:01:10]} 31. c5 {[%clk 0:00:40]}  bxc5 {[%clk 0:01:08]} 32. Nxc5 {[%clk 0:00:40]}  Kf5 {[%clk 0:01:07]} 33. g4+ {[%clk 0:00:24]}  hxg4 {[%clk 0:01:06]} 34. hxg4+ {[%clk 0:00:22]}  Nxg4 {[%clk 0:01:07]} 35. Ne6 {[%clk 0:00:23]}  Nf6 {[%clk 0:00:56]} 36. Rd4 {[%clk 0:00:08]}  Rh7 {[%clk 0:00:56]} 37. c4 {[%clk 0:00:07]}  Ke5 {[%clk 0:00:56]} 38. Nxg5 {[%clk 0:00:05]}  Kxd4 {[%clk 0:00:54]} 0-1


[Site "https://www.chess.com"]

[Event "Titled Tuesday Blitz August 08 Early 2023"]
[White "Puranik, Abhimanyu"]
[Black "Przybylski, Wojciech"]
[WhiteFideId "5061245"]
[BlackFideId "1117599"]
[WhiteElo "2981"]
[BlackElo "2616"]
[Result "1-0"]
[Round "2"]
[TimeControl "180+1"]
[Date "2023.08.08"]
[WhiteClock "0:00:26"]
[BlackClock "0:00:04"]
[Board "22"]

1. Nf3 {[%clk 0:03:00]}  f6 {[%clk 0:02:59]} 2. d4 {[%clk 0:03:00]}  d5 {[%clk 0:02:57]} 3. c4 {[%clk 0:02:59]}  c6 {[%clk 0:02:57]} 4. Nc3 {[%clk 0:02:58]}  e6 {[%clk 0:02:54]} 5. e4 {[%clk 0:02:58]}  dxe4 {[%clk 0:02:50]} 6. Nxe4 {[%clk 0:02:59]}  Bb4+ {[%clk 0:02:48]} 7. Bd2 {[%clk 0:02:58]}  Bxd2+ {[%clk 0:02:46]} 8. Qxd2 {[%clk 0:02:59]}  Ne7 {[%clk 0:02:46]} 9. Bd3 {[%clk 0:02:59]}  O-O {[%clk 0:02:41]} 10. O-O {[%clk 0:02:59]}  b6 {[%clk 0:02:38]} 11. Rfe1 {[%clk 0:02:58]}  Na6 {[%clk 0:02:36]} 12. Rad1 {[%clk 0:02:50]}  Nc7 {[%clk 0:02:36]} 13. Bc2 {[%clk 0:02:47]}  Ng6 {[%clk 0:02:29]} 14. h4 {[%clk 0:02:46]}  Nh8 {[%clk 0:02:21]} 15. Qf4 {[%clk 0:02:40]}  f5 {[%clk 0:02:11]} 16. Nd6 {[%clk 0:02:29]}  Ng6 {[%clk 0:02:08]} 17. Qh2 {[%clk 0:02:29]}  Ne8 {[%clk 0:01:53]} 18. Nxc8 {[%clk 0:02:20]}  Qxc8 {[%clk 0:01:54]} 19. h5 {[%clk 0:02:20]}  Nh8 {[%clk 0:01:51]} 20. Re3 {[%clk 0:02:11]}  Nf7 {[%clk 0:01:43]} 21. Rde1 {[%clk 0:02:09]}  Nc7 {[%clk 0:01:43]} 22. Ne5 {[%clk 0:02:00]}  Nxe5 {[%clk 0:01:34]} 23. Qxe5 {[%clk 0:01:59]}  Qd7 {[%clk 0:01:32]} 24. h6 {[%clk 0:01:45]}  g6 {[%clk 0:01:32]} 25. Bb3 {[%clk 0:01:25]}  Rad8 {[%clk 0:01:22]} 26. d5 {[%clk 0:01:23]}  exd5 {[%clk 0:01:04]} 27. cxd5 {[%clk 0:01:20]}  Nxd5 {[%clk 0:01:01]} 28. Qd4 {[%clk 0:01:06]}  Rf7 {[%clk 0:00:56]} 29. Re6 {[%clk 0:00:59]}  f4 {[%clk 0:00:38]} 30. R1e5 {[%clk 0:00:42]}  f3 {[%clk 0:00:31]} 31. g3 {[%clk 0:00:33]}  a5 {[%clk 0:00:11]} 32. a4 {[%clk 0:00:31]}  Qb7 {[%clk 0:00:05]} 33. Re8+ {[%clk 0:00:27]}  Rxe8 {[%clk 0:00:05]} 34. Rxe8+ {[%clk 0:00:27]}  Rf8 {[%clk 0:00:05]} 35. Qh8+ {[%clk 0:00:27]}  Kf7 {[%clk 0:00:04]} 36. Qxf8# {[%clk 0:00:26]} 1-0


[Site "https://www.chess.com"]

[Event "Titled Tuesday Blitz August 08 Early 2023"]
[White "Kononenko, Dmitry"]
[Black "Movahed, Sina"]
[WhiteFideId "14113538"]
[BlackFideId "42520835"]
[WhiteElo "2615"]
[BlackElo "2978"]
[Result "0-1"]
[Round "2"]
[TimeControl "180+1"]
[Date "2023.08.08"]
[WhiteClock "0:01:30"]
[BlackClock "0:02:07"]
[Board "23"]

1. d4 {[%clk 0:02:59]}  Nf6 {[%clk 0:02:59]} 2. c4 {[%clk 0:02:59]}  g6 {[%clk 0:03:00]} 3. Nc3 {[%clk 0:02:59]}  Bg7 {[%clk 0:03:00]} 4. Nf3 {[%clk 0:02:58]}  O-O {[%clk 0:03:00]} 5. g3 {[%clk 0:02:58]}  d6 {[%clk 0:02:59]} 6. Bg2 {[%clk 0:02:59]}  Nbd7 {[%clk 0:03:00]} 7. O-O {[%clk 0:02:59]}  e5 {[%clk 0:03:00]} 8. e4 {[%clk 0:03:00]}  exd4 {[%clk 0:03:01]} 9. Nxd4 {[%clk 0:03:01]}  Re8 {[%clk 0:03:01]} 10. Re1 {[%clk 0:03:01]}  Nc5 {[%clk 0:03:02]} 11. h3 {[%clk 0:03:01]}  h6 {[%clk 0:03:02]} 12. b3 {[%clk 0:02:48]}  a5 {[%clk 0:03:00]} 13. Bb2 {[%clk 0:02:48]}  a4 {[%clk 0:02:58]} 14. Rc1 {[%clk 0:02:43]}  c6 {[%clk 0:02:54]} 15. b4 {[%clk 0:02:41]}  a3 {[%clk 0:02:54]} 16. Ba1 {[%clk 0:02:41]}  Ne6 {[%clk 0:02:54]} 17. Nce2 {[%clk 0:02:35]}  Ng5 {[%clk 0:02:53]} 18. Nf4 {[%clk 0:02:28]}  Ngxe4 {[%clk 0:02:50]} 19. Qc2 {[%clk 0:02:18]}  d5 {[%clk 0:02:46]} 20. cxd5 {[%clk 0:02:18]}  cxd5 {[%clk 0:02:46]} 21. Nb5 {[%clk 0:02:09]}  Bd7 {[%clk 0:02:37]} 22. Nxd5 {[%clk 0:01:58]}  Bxb5 {[%clk 0:02:27]} 23. Bxe4 {[%clk 0:01:48]}  Nxe4 {[%clk 0:02:16]} 24. Bxg7 {[%clk 0:01:44]}  Qxd5 {[%clk 0:02:14]} 25. Bxh6 {[%clk 0:01:43]}  Ng5 {[%clk 0:02:12]} 26. Bxg5 {[%clk 0:01:41]}  Qxg5 {[%clk 0:02:11]} 27. Qc7 {[%clk 0:01:40]}  Bc6 {[%clk 0:02:08]} 28. Qd6 {[%clk 0:01:31]}  Qd5 {[%clk 0:02:05]} 29. Qxd5 {[%clk 0:01:31]}  Bxd5 {[%clk 0:02:06]} 30. Rxe8+ {[%clk 0:01:31]}  Rxe8 {[%clk 0:02:07]} 31. Rc2 {[%clk 0:01:30]}  Re1+ {[%clk 0:02:06]} 32. Kh2 {[%clk 0:01:30]}  Rh1# {[%clk 0:02:07]} 0-1


[Site "https://www.chess.com"]

[Event "Titled Tuesday Blitz August 08 Early 2023"]
[White "Demidov, Mikhail"]
[Black "Liyanage, Ranindu Dilshan"]
[WhiteFideId "4197143"]
[BlackFideId "9915834"]
[WhiteElo "2963"]
[BlackElo "2607"]
[Result "1-0"]
[Round "2"]
[TimeControl "180+1"]
[Date "2023.08.08"]
[WhiteClock "0:02:16"]
[BlackClock "0:00:01"]
[Board "25"]

1. Nf3 {[%clk 0:03:00]}  d5 {[%clk 0:02:59]} 2. d4 {[%clk 0:02:56]}  Nf6 {[%clk 0:02:59]} 3. Bf4 {[%clk 0:02:56]}  e6 {[%clk 0:02:58]} 4. e3 {[%clk 0:02:56]}  c5 {[%clk 0:02:58]} 5. dxc5 {[%clk 0:02:56]}  Bxc5 {[%clk 0:02:57]} 6. Be2 {[%clk 0:02:56]}  Nc6 {[%clk 0:02:41]} 7. O-O {[%clk 0:02:56]}  h6 {[%clk 0:02:40]} 8. c4 {[%clk 0:02:55]}  O-O {[%clk 0:02:40]} 9. Nc3 {[%clk 0:02:55]}  a6 {[%clk 0:02:35]} 10. cxd5 {[%clk 0:02:53]}  exd5 {[%clk 0:02:33]} 11. Rc1 {[%clk 0:02:52]}  Ba7 {[%clk 0:02:31]} 12. Ne5 {[%clk 0:02:51]}  Ne7 {[%clk 0:02:05]} 13. Bf3 {[%clk 0:02:48]}  d4 {[%clk 0:01:50]} 14. exd4 {[%clk 0:02:46]}  Bxd4 {[%clk 0:01:48]} 15. Qb3 {[%clk 0:02:45]}  Qa5 {[%clk 0:01:18]} 16. Rfe1 {[%clk 0:02:32]}  Be6 {[%clk 0:00:24]} 17. Qxb7 {[%clk 0:02:30]}  Bxc3 {[%clk 0:00:23]} 18. bxc3 {[%clk 0:02:25]}  Ned5 {[%clk 0:00:23]} 19. Bg3 {[%clk 0:02:19]}  Rfb8 {[%clk 0:00:15]} 20. Nc6 {[%clk 0:02:18]}  Rxb7 {[%clk 0:00:08]} 21. Nxa5 {[%clk 0:02:17]}  Rb5 {[%clk 0:00:01]} 22. Nb3 {[%clk 0:02:16]} 1-0


[Site "https://www.chess.com"]

[Event "Titled Tuesday Blitz August 08 Early 2023"]
[White "Indjic, Aleksandar"]
[Black "Domingo Nunez, Ruben"]
[WhiteFideId "911925"]
[BlackFideId "22245570"]
[WhiteElo "2939"]
[BlackElo "2607"]
[Result "0-1"]
[Round "2"]
[TimeControl "180+1"]
[Date "2023.08.08"]
[WhiteClock "0:00:08"]
[BlackClock "0:00:10"]
[Board "26"]

1. e4 {[%clk 0:03:00]}  g6 {[%clk 0:03:00]} 2. d4 {[%clk 0:02:59]}  Bg7 {[%clk 0:03:00]} 3. Nc3 {[%clk 0:02:58]}  c6 {[%clk 0:03:00]} 4. Nf3 {[%clk 0:02:55]}  d5 {[%clk 0:03:01]} 5. h3 {[%clk 0:02:56]}  dxe4 {[%clk 0:03:02]} 6. Nxe4 {[%clk 0:02:55]}  Nf6 {[%clk 0:03:03]} 7. Bd3 {[%clk 0:02:54]}  O-O {[%clk 0:02:58]} 8. c3 {[%clk 0:02:53]}  Nxe4 {[%clk 0:02:54]} 9. Bxe4 {[%clk 0:02:53]}  Nd7 {[%clk 0:02:55]} 10. Qe2 {[%clk 0:02:49]}  e5 {[%clk 0:02:47]} 11. dxe5 {[%clk 0:02:47]}  Nxe5 {[%clk 0:02:48]} 12. Nxe5 {[%clk 0:02:47]}  Bxe5 {[%clk 0:02:49]} 13. O-O {[%clk 0:02:44]}  Re8 {[%clk 0:02:48]} 14. Qf3 {[%clk 0:02:44]}  Qh4 {[%clk 0:02:41]} 15. Bc2 {[%clk 0:02:37]}  Be6 {[%clk 0:02:39]} 16. Be3 {[%clk 0:02:37]}  h5 {[%clk 0:02:21]} 17. Bb3 {[%clk 0:02:32]}  a5 {[%clk 0:01:22]} 18. Rfd1 {[%clk 0:02:26]}  Qe7 {[%clk 0:01:19]} 19. Bxe6 {[%clk 0:02:11]}  Qxe6 {[%clk 0:01:20]} 20. a4 {[%clk 0:02:06]}  Kg7 {[%clk 0:01:20]} 21. Kf1 {[%clk 0:02:01]}  Qb3 {[%clk 0:01:19]} 22. Rd7 {[%clk 0:01:57]}  Rad8 {[%clk 0:01:08]} 23. Rad1 {[%clk 0:01:57]}  Rxd7 {[%clk 0:01:02]} 24. Rxd7 {[%clk 0:01:57]}  Bf6 {[%clk 0:01:03]} 25. g4 {[%clk 0:01:56]}  hxg4 {[%clk 0:00:59]} 26. hxg4 {[%clk 0:01:57]}  Re7 {[%clk 0:01:00]} 27. Rd6 {[%clk 0:01:32]}  Re6 {[%clk 0:00:34]} 28. Rd7 {[%clk 0:01:32]}  Re7 {[%clk 0:00:34]} 29. Rd2 {[%clk 0:01:28]}  Qxa4 {[%clk 0:00:31]} 30. g5 {[%clk 0:01:28]}  Be5 {[%clk 0:00:31]} 31. Rd8 {[%clk 0:01:27]}  Qh4 {[%clk 0:00:29]} 32. Bc5 {[%clk 0:01:22]}  Rc7 {[%clk 0:00:19]} 33. Qe3 {[%clk 0:01:03]}  Qh1+ {[%clk 0:00:15]} 34. Ke2 {[%clk 0:01:03]}  Qh5+ {[%clk 0:00:15]} 35. Kd2 {[%clk 0:01:03]}  f6 {[%clk 0:00:14]} 36. Re8 {[%clk 0:00:13]}  Rf7 {[%clk 0:00:12]} 37. Kc2 {[%clk 0:00:13]}  Qg4 {[%clk 0:00:11]} 38. Kb3 {[%clk 0:00:12]}  Qd7 {[%clk 0:00:11]} 39. Ra8 {[%clk 0:00:11]}  Qd5+ {[%clk 0:00:11]} 40. Ka3 {[%clk 0:00:09]}  Bd6 {[%clk 0:00:10]} 41. gxf6+ {[%clk 0:00:08]}  Rxf6 {[%clk 0:00:11]} 42. Bxd6 {[%clk 0:00:08]}  Qxd6+ {[%clk 0:00:12]} 43. Ka2 {[%clk 0:00:09]}  Qd5+ {[%clk 0:00:10]} 44. b3 {[%clk 0:00:10]}  Re6 {[%clk 0:00:09]} 45. Qf4 {[%clk 0:00:09]}  Re2+ {[%clk 0:00:09]} 46. Ka3 {[%clk 0:00:08]}  Qc5+ {[%clk 0:00:10]} 47. b4 {[%clk 0:00:08]}  Qxc3+ {[%clk 0:00:10]} 48. Ka4 {[%clk 0:00:08]}  Ra2# {[%clk 0:00:10]} 0-1


[Site "https://www.chess.com"]